[Event "Early-Titled-Tuesday-Blitz-October-03-2023"]
[Site "Chess.com"]
[Date "2023.10.03"]
[Round "1"]
[White "viktorskliarov"]
[Black "ajedrezhoy"]
[Result "1-0"]
[WhiteElo "2658"]
[BlackElo "2359"]
[TimeControl "180+1"]
[EndTime "8:07:00 PDT"]
[Termination "viktorskliarov won by resignation"]

1. e4 {[%clk 0:03:00.9]} 1... Nf6 {[%clk 0:02:59]} 2. Nc3 {[%clk 0:02:59]} 2...
d5 {[%clk 0:02:58.5]} 3. exd5 {[%clk 0:02:58.4]} 3... Nxd5 {[%clk 0:02:58.2]} 4.
Bc4 {[%clk 0:02:59]} 4... Nb6 {[%clk 0:02:57.9]} 5. Bb3 {[%clk 0:02:59]} 5... c5
{[%clk 0:02:57.7]} 6. Qh5 {[%clk 0:02:58.8]} 6... c4 {[%clk 0:02:57]} 7. Bxc4
{[%clk 0:02:58.5]} 7... Nxc4 {[%clk 0:02:57.2]} 8. Qb5+ {[%clk 0:02:58.4]} 8...
Nc6 {[%clk 0:02:57]} 9. Qxc4 {[%clk 0:02:58.7]} 9... e5 {[%clk 0:02:55.9]} 10.
Nf3 {[%clk 0:02:57.5]} 10... Be6 {[%clk 0:02:55.8]} 11. Qe2 {[%clk 0:02:55.4]}
11... f6 {[%clk 0:02:36.4]} 12. h3 {[%clk 0:02:49]} 12... Be7 {[%clk 0:02:35.9]}
13. O-O {[%clk 0:02:48.5]} 13... O-O {[%clk 0:02:35.9]} 14. d3 {[%clk
0:02:48.4]} 14... Qd7 {[%clk 0:02:31.4]} 15. Re1 {[%clk 0:02:44.9]} 15... Rac8
{[%clk 0:02:27.9]} 16. a3 {[%clk 0:02:43.2]} 16... Rfe8 {[%clk 0:02:22.4]} 17.
Be3 {[%clk 0:02:32.7]} 17... Bf7 {[%clk 0:02:21]} 18. Qd2 {[%clk 0:02:23.6]}
18... Red8 {[%clk 0:01:58.7]} 19. Ne2 {[%clk 0:02:11.3]} 19... Qc7 {[%clk
0:01:41.8]} 20. Ng3 {[%clk 0:02:06.8]} 20... Bf8 {[%clk 0:01:39.6]} 21. Rac1
{[%clk 0:02:01.1]} 21... b6 {[%clk 0:01:29.5]} 22. Red1 {[%clk 0:01:41.4]} 22...
Bd5 {[%clk 0:01:27.4]} 23. Qe2 {[%clk 0:01:39]} 23... Re8 {[%clk 0:01:21.4]} 24.
c4 {[%clk 0:01:33]} 24... Bf7 {[%clk 0:01:18]} 25. b4 {[%clk 0:01:30]} 25...
Rcd8 {[%clk 0:01:16.3]} 26. Qb2 {[%clk 0:01:27.3]} 26... Bg6 {[%clk 0:01:10.5]}
27. d4 {[%clk 0:01:24.2]} 27... exd4 {[%clk 0:01:08.6]} 28. Nxd4 {[%clk
0:01:23.6]} 28... Ne5 {[%clk 0:01:08.3]} 29. c5 {[%clk 0:01:02.4]} 29... bxc5
{[%clk 0:01:06.6]} 30. bxc5 {[%clk 0:00:54.4]} 30... Nd3 {[%clk 0:01:01.5]} 31.
Rxd3 {[%clk 0:00:51.1]} 31... Bxd3 {[%clk 0:01:00.7]} 32. Qb3+ {[%clk
0:00:51.5]} 32... Kh8 {[%clk 0:00:46.9]} 33. Qxd3 {[%clk 0:00:49.7]} 33... Qa5
{[%clk 0:00:39.2]} 34. Nc6 {[%clk 0:00:33.3]} 34... Rxd3 {[%clk 0:00:36.5]} 35.
Nxa5 {[%clk 0:00:33.3]} 35... Rxa3 {[%clk 0:00:36.3]} 36. Nb7 {[%clk 0:00:33.3]}
36... Rc8 {[%clk 0:00:34.1]} 37. Nf5 {[%clk 0:00:26.9]} 37... a5 {[%clk
0:00:27.5]} 38. c6 {[%clk 0:00:24.7]} 38... Rc7 {[%clk 0:00:25.5]} 39. Bb6
{[%clk 0:00:21.2]} 39... Rc8 {[%clk 0:00:24.6]} 40. Nbd6 {[%clk 0:00:21.5]}
40... Bxd6 {[%clk 0:00:23.8]} 41. Nxd6 {[%clk 0:00:22.4]} 1-0

[Event "Early-Titled-Tuesday-Blitz-October-03-2023"]
[Site "Chess.com"]
[Date "2023.10.03"]
[Round "1"]
[White "AlexPapasimakopoulos"]
[Black "i_like_explosions"]
[Result "1-0"]
[WhiteElo "2702"]
[BlackElo "2395"]
[TimeControl "180+1"]
[EndTime "8:07:01 PDT"]
[Termination "AlexPapasimakopoulos won on time"]

1. Nf3 {[%clk 0:03:00.4]} 1... Nf6 {[%clk 0:02:59.7]} 2. b3 {[%clk 0:03:00.5]}
2... g6 {[%clk 0:03:00.3]} 3. Bb2 {[%clk 0:03:00.6]} 3... Bg7 {[%clk 0:03:01]}
4. g3 {[%clk 0:03:01]} 4... d6 {[%clk 0:03:01.6]} 5. Bg2 {[%clk 0:03:01.4]} 5...
O-O {[%clk 0:03:02.3]} 6. d4 {[%clk 0:03:01.4]} 6... Nbd7 {[%clk 0:03:00.9]} 7.
O-O {[%clk 0:03:00.9]} 7... c5 {[%clk 0:03:01.2]} 8. c4 {[%clk 0:02:54.2]} 8...
a6 {[%clk 0:03:01.4]} 9. Nc3 {[%clk 0:02:54.1]} 9... Rb8 {[%clk 0:03:01.4]} 10.
e4 {[%clk 0:02:49.9]} 10... cxd4 {[%clk 0:02:59.3]} 11. Nxd4 {[%clk 0:02:49.8]}
11... Nc5 {[%clk 0:02:51.1]} 12. Re1 {[%clk 0:02:46]} 12... Bd7 {[%clk
0:02:48.8]} 13. a4 {[%clk 0:02:30.2]} 13... Qc7 {[%clk 0:02:13.6]} 14. h3 {[%clk
0:02:18.8]} 14... e5 {[%clk 0:02:03.4]} 15. Nde2 {[%clk 0:02:12.1]} 15... Ne6
{[%clk 0:01:58]} 16. a5 {[%clk 0:01:56.7]} 16... Rbd8 {[%clk 0:01:49.7]} 17. Qd2
{[%clk 0:01:54.6]} 17... h5 {[%clk 0:01:47.3]} 18. Rec1 {[%clk 0:01:53.6]} 18...
Kh7 {[%clk 0:01:46]} 19. Nd5 {[%clk 0:01:53.3]} 19... Qb8 {[%clk 0:01:34.7]} 20.
Nxf6+ {[%clk 0:01:25.8]} 20... Bxf6 {[%clk 0:01:34.5]} 21. Rd1 {[%clk
0:01:24.6]} 21... Bc6 {[%clk 0:01:15.5]} 22. b4 {[%clk 0:01:19.4]} 22... Bg5
{[%clk 0:01:14.1]} 23. Qd3 {[%clk 0:01:15.3]} 23... Be7 {[%clk 0:00:41.3]} 24.
h4 {[%clk 0:01:10.7]} 24... Ng7 {[%clk 0:00:37.6]} 25. Nc3 {[%clk 0:01:07.3]}
25... f5 {[%clk 0:00:32.2]} 26. b5 {[%clk 0:01:01.8]} 26... axb5 {[%clk
0:00:28.3]} 27. cxb5 {[%clk 0:01:01.7]} 27... Be8 {[%clk 0:00:27.5]} 28. Nd5
{[%clk 0:01:00.7]} 28... Bf6 {[%clk 0:00:18.7]} 29. Bc1 {[%clk 0:00:56.3]} 29...
Ne6 {[%clk 0:00:18.7]} 30. exf5 {[%clk 0:00:48]} 30... Nd4 {[%clk 0:00:12]} 31.
Nxf6+ {[%clk 0:00:37.6]} 31... Rxf6 {[%clk 0:00:11.8]} 32. Bg5 {[%clk
0:00:38.3]} 32... Rxf5 {[%clk 0:00:06.1]} 33. Bxd8 {[%clk 0:00:37.6]} 33... Qxd8
{[%clk 0:00:05.9]} 34. Rdb1 {[%clk 0:00:28.7]} 34... Rf6 {[%clk 0:00:04.2]} 35.
a6 {[%clk 0:00:28.2]} 35... bxa6 {[%clk 0:00:04.2]} 36. bxa6 {[%clk 0:00:28.3]}
36... Qc7 {[%clk 0:00:01.7]} 37. a7 {[%clk 0:00:28]} 1-0

[Event "Early-Titled-Tuesday-Blitz-October-03-2023"]
[Site "Chess.com"]
[Date "2023.10.03"]
[Round "1"]
[White "Triumphmate"]
[Black "temus_galaktionov"]
[Result "0-1"]
[WhiteElo "2475"]
[BlackElo "2853"]
[TimeControl "180+1"]
[EndTime "8:07:07 PDT"]
[Termination "temus_galaktionov won by resignation"]

1. e4 {[%clk 0:03:00.9]} 1... c6 {[%clk 0:02:59.8]} 2. d4 {[%clk 0:02:59.9]}
2... g6 {[%clk 0:03:00.7]} 3. Nc3 {[%clk 0:02:58.9]} 3... d6 {[%clk 0:03:01.6]}
4. Be3 {[%clk 0:02:58]} 4... Bg7 {[%clk 0:03:01.7]} 5. Qd2 {[%clk 0:02:57.6]}
5... b5 {[%clk 0:03:01.8]} 6. O-O-O {[%clk 0:02:56.6]} 6... Qa5 {[%clk
0:03:00.9]} 7. Kb1 {[%clk 0:02:54]} 7... Nf6 {[%clk 0:02:59.9]} 8. f3 {[%clk
0:02:53.6]} 8... Nbd7 {[%clk 0:02:52.4]} 9. Nd5 {[%clk 0:02:49]} 9... Qxd2
{[%clk 0:02:49.9]} 10. Nxf6+ {[%clk 0:02:49.1]} 10... Bxf6 {[%clk 0:02:45.1]}
11. Rxd2 {[%clk 0:02:49.4]} 11... Nb6 {[%clk 0:02:45.7]} 12. Bd3 {[%clk
0:02:44.9]} 12... Be6 {[%clk 0:02:45.1]} 13. Bf4 {[%clk 0:02:42.5]} 13... Nc4
{[%clk 0:02:33.7]} 14. Bxc4 {[%clk 0:02:41]} 14... Bxc4 {[%clk 0:02:33]} 15. b3
{[%clk 0:02:23.3]} 15... Be6 {[%clk 0:02:31.8]} 16. e5 {[%clk 0:02:23]} 16...
dxe5 {[%clk 0:02:31.1]} 17. Bxe5 {[%clk 0:02:23.3]} 17... Bxe5 {[%clk
0:02:14.3]} 18. dxe5 {[%clk 0:02:23.6]} 18... Rd8 {[%clk 0:02:15.2]} 19. Rxd8+
{[%clk 0:02:13.2]} 19... Kxd8 {[%clk 0:02:16.1]} 20. Ne2 {[%clk 0:02:13.1]}
20... Kc7 {[%clk 0:02:16.7]} 21. Rd1 {[%clk 0:02:10.4]} 21... f6 {[%clk
0:02:16]} 22. exf6 {[%clk 0:02:02.8]} 22... exf6 {[%clk 0:02:16.1]} 23. Kb2
{[%clk 0:01:55.8]} 23... Re8 {[%clk 0:02:14.9]} 24. Nc3 {[%clk 0:01:54.2]} 24...
Bf5 {[%clk 0:02:10.6]} 25. Rd2 {[%clk 0:01:54.1]} 25... h5 {[%clk 0:02:08.1]}
26. b4 {[%clk 0:01:51.1]} 26... Re1 {[%clk 0:02:04.6]} 27. a4 {[%clk 0:01:50.8]}
27... a6 {[%clk 0:02:04.3]} 28. axb5 {[%clk 0:01:41.8]} 28... axb5 {[%clk
0:02:05.2]} 29. Ne2 {[%clk 0:01:42.3]} 29... Be6 {[%clk 0:01:56.9]} 30. Nd4
{[%clk 0:01:34.1]} 30... Bc4 {[%clk 0:01:56.1]} 31. Nb3 {[%clk 0:01:32.3]} 31...
h4 {[%clk 0:01:53.4]} 32. Nc5 {[%clk 0:01:31.8]} 32... Bd5 {[%clk 0:01:52.4]}
33. h3 {[%clk 0:01:28.4]} 33... Kd6 {[%clk 0:01:49]} 34. Ne4+ {[%clk 0:01:26.9]}
34... Ke5 {[%clk 0:01:49.1]} 35. Nc3 {[%clk 0:01:26.9]} 35... Bc4 {[%clk
0:01:48.3]} 36. Ne4 {[%clk 0:01:26.5]} 36... Rg1 {[%clk 0:01:45.5]} 37. Rd6
{[%clk 0:01:14.6]} 37... f5 {[%clk 0:01:42.6]} 38. Rxg6 {[%clk 0:01:09.9]} 38...
fxe4 {[%clk 0:01:42.7]} 39. fxe4 {[%clk 0:01:10.6]} 39... Kxe4 {[%clk
0:01:40.9]} 40. Rg4+ {[%clk 0:01:08]} 40... Ke3 {[%clk 0:01:40.6]} 41. Kc3
{[%clk 0:01:07.9]} 41... Bd5 {[%clk 0:01:39.8]} 42. Rxh4 {[%clk 0:01:07.1]}
42... Rxg2 {[%clk 0:01:39.8]} 43. Rh8 {[%clk 0:01:05.8]} 43... Ke4 {[%clk
0:01:39.1]} 44. h4 {[%clk 0:01:04.6]} 44... Rg3+ {[%clk 0:01:39.1]} 45. Kb2
{[%clk 0:01:04.2]} 45... Kd4 {[%clk 0:01:39.5]} 46. h5 {[%clk 0:01:03.3]} 46...
Be4 {[%clk 0:01:39.8]} 47. h6 {[%clk 0:01:02.3]} 47... Rg2 {[%clk 0:01:39.9]}
48. h7 {[%clk 0:00:59.3]} 48... Rxc2+ {[%clk 0:01:39.7]} 49. Kb3 {[%clk
0:00:58.6]} 49... Rc3+ {[%clk 0:01:39.9]} 50. Kb2 {[%clk 0:00:58]} 50... Kc4
{[%clk 0:01:37.2]} 51. Rg8 {[%clk 0:00:33.3]} 51... Rb3+ {[%clk 0:01:34.5]} 52.
Ka2 {[%clk 0:00:32]} 52... Bb1+ {[%clk 0:01:34.3]} 53. Ka1 {[%clk 0:00:31.6]}
53... Bxh7 {[%clk 0:01:35.2]} 54. Rg4+ {[%clk 0:00:26.4]} 54... Kd5 {[%clk
0:01:34.5]} 55. Ka2 {[%clk 0:00:25.4]} 55... Rd3 {[%clk 0:01:32.2]} 56. Rh4
{[%clk 0:00:23.7]} 56... Be4 {[%clk 0:01:31.8]} 57. Rh5+ {[%clk 0:00:20.7]}
57... Kc4 {[%clk 0:01:30.2]} 58. Rh4 {[%clk 0:00:20.8]} 58... Re3 {[%clk
0:01:30.5]} 59. Rh3 {[%clk 0:00:18.5]} 59... Rxh3 {[%clk 0:01:29.1]} 0-1

[Event "Early-Titled-Tuesday-Blitz-October-03-2023"]
[Site "Chess.com"]
[Date "2023.10.03"]
[Round "1"]
[White "the_chess_child"]
[Black "Rap_woyska"]
[Result "1-0"]
[WhiteElo "2852"]
[BlackElo "2473"]
[TimeControl "180+1"]
[EndTime "8:07:07 PDT"]
[Termination "the_chess_child won by resignation"]

1. e4 {[%clk 0:03:00.9]} 1... e6 {[%clk 0:03:00]} 2. d3 {[%clk 0:03:00.8]} 2...
d5 {[%clk 0:02:59]} 3. Nd2 {[%clk 0:03:00.8]} 3... Nc6 {[%clk 0:02:59.5]} 4.
Ngf3 {[%clk 0:03:00.3]} 4... Nf6 {[%clk 0:03:00]} 5. c3 {[%clk 0:03:00.1]} 5...
e5 {[%clk 0:02:54.1]} 6. Be2 {[%clk 0:02:59.5]} 6... a5 {[%clk 0:02:54.1]} 7.
O-O {[%clk 0:02:58.6]} 7... Bc5 {[%clk 0:02:55]} 8. b3 {[%clk 0:02:53.8]} 8...
O-O {[%clk 0:02:52.8]} 9. Bb2 {[%clk 0:02:51.5]} 9... Re8 {[%clk 0:02:48.6]} 10.
a3 {[%clk 0:02:51]} 10... Ba7 {[%clk 0:02:42.8]} 11. b4 {[%clk 0:02:48.9]} 11...
d4 {[%clk 0:02:18.3]} 12. cxd4 {[%clk 0:01:42.4]} 12... exd4 {[%clk 0:02:11.9]}
13. b5 {[%clk 0:01:42]} 13... Ne5 {[%clk 0:02:05.7]} 14. Nxe5 {[%clk 0:01:39.6]}
14... Rxe5 {[%clk 0:02:06.6]} 15. a4 {[%clk 0:01:40.2]} 15... Bb6 {[%clk
0:02:07.2]} 16. f4 {[%clk 0:01:38.6]} 16... Re8 {[%clk 0:02:07.2]} 17. Bf3
{[%clk 0:01:36.3]} 17... Be6 {[%clk 0:01:50.7]} 18. Rc1 {[%clk 0:01:35.5]} 18...
Qe7 {[%clk 0:01:41.5]} 19. Nc4 {[%clk 0:01:32.5]} 19... Bc5 {[%clk 0:01:40.5]}
20. Kh1 {[%clk 0:01:26.4]} 20... Rad8 {[%clk 0:01:40.8]} 21. Nxa5 {[%clk
0:01:26]} 21... Bc8 {[%clk 0:01:35.9]} 22. Nb3 {[%clk 0:01:19.1]} 22... Bb6
{[%clk 0:01:33.2]} 23. a5 {[%clk 0:01:19]} 23... Ba7 {[%clk 0:01:33.9]} 24. Qc2
{[%clk 0:01:18.8]} 24... Qb4 {[%clk 0:01:29.1]} 25. Qc4 {[%clk 0:01:14.9]} 25...
Qxc4 {[%clk 0:01:12.1]} 26. Rxc4 {[%clk 0:01:14.7]} 26... Be6 {[%clk 0:01:08.8]}
27. Rxc7 {[%clk 0:00:58.7]} 27... Bxb3 {[%clk 0:01:09]} 28. Rxb7 {[%clk
0:00:58.9]} 28... Bc5 {[%clk 0:01:04.6]} 29. Rc1 {[%clk 0:00:52.9]} 29... Rc8
{[%clk 0:00:59.9]} 30. a6 {[%clk 0:00:47.7]} 30... h5 {[%clk 0:00:50.5]} 31. h3
{[%clk 0:00:39.5]} 31... Bb4 {[%clk 0:00:21.3]} 32. Rxc8 {[%clk 0:00:38]} 32...
Rxc8 {[%clk 0:00:22.1]} 33. a7 {[%clk 0:00:38.3]} 33... Bd6 {[%clk 0:00:07.6]}
34. e5 {[%clk 0:00:38.1]} 1-0

[Event "Early-Titled-Tuesday-Blitz-October-03-2023"]
[Site "Chess.com"]
[Date "2023.10.03"]
[Round "1"]
[White "MMAHDI2013"]
[Black "astralpulse"]
[Result "0-1"]
[WhiteElo "2384"]
[BlackElo "2686"]
[TimeControl "180+1"]
[EndTime "8:07:07 PDT"]
[Termination "astralpulse won on time"]

1. c4 {[%clk 0:02:59]} 1... e6 {[%clk 0:02:59.6]} 2. Nf3 {[%clk 0:02:58.8]} 2...
d5 {[%clk 0:02:59.4]} 3. g3 {[%clk 0:02:59.5]} 3... Nf6 {[%clk 0:02:57.7]} 4.
Bg2 {[%clk 0:02:59.8]} 4... Be7 {[%clk 0:02:58.1]} 5. O-O {[%clk 0:03:00.1]}
5... O-O {[%clk 0:02:58.7]} 6. b3 {[%clk 0:03:00.6]} 6... b6 {[%clk 0:02:59.2]}
7. Bb2 {[%clk 0:03:01]} 7... Bb7 {[%clk 0:02:59.9]} 8. e3 {[%clk 0:02:58.8]}
8... Nbd7 {[%clk 0:02:59.8]} 9. Nc3 {[%clk 0:02:59.1]} 9... a6 {[%clk
0:02:59.7]} 10. Qe2 {[%clk 0:02:59.4]} 10... c5 {[%clk 0:02:50.6]} 11. Nh4
{[%clk 0:02:51.7]} 11... Re8 {[%clk 0:02:35.8]} 12. cxd5 {[%clk 0:02:40.8]}
12... exd5 {[%clk 0:02:36]} 13. d4 {[%clk 0:02:31.1]} 13... cxd4 {[%clk
0:02:23.7]} 14. exd4 {[%clk 0:02:32]} 14... Ne4 {[%clk 0:01:46.4]} 15. Nf5
{[%clk 0:02:15.9]} 15... Bf8 {[%clk 0:01:33.7]} 16. Nxe4 {[%clk 0:01:43.9]}
16... dxe4 {[%clk 0:01:32.9]} 17. d5 {[%clk 0:01:40.5]} 17... Qg5 {[%clk
0:01:22.2]} 18. Ne3 {[%clk 0:01:33.7]} 18... Nc5 {[%clk 0:01:22.3]} 19. h4
{[%clk 0:01:30.7]} 19... Qg6 {[%clk 0:01:19.4]} 20. Rfd1 {[%clk 0:01:23.9]}
20... Rad8 {[%clk 0:01:18.2]} 21. Bh3 {[%clk 0:01:09.6]} 21... Nd3 {[%clk
0:00:52.2]} 22. Bf5 {[%clk 0:01:09.8]} 22... Qd6 {[%clk 0:00:51.9]} 23. Bd4
{[%clk 0:00:57.4]} 23... g6 {[%clk 0:00:50.8]} 24. Bxe4 {[%clk 0:00:57.6]} 24...
Rxe4 {[%clk 0:00:50.1]} 25. Qxd3 {[%clk 0:00:56.5]} 25... Rde8 {[%clk
0:00:47.4]} 26. Bb2 {[%clk 0:00:52.5]} 26... Rxe3 {[%clk 0:00:36.2]} 27. Qd4
{[%clk 0:00:31.3]} 27... f6 {[%clk 0:00:36.4]} 28. fxe3 {[%clk 0:00:23.8]} 28...
Qxg3+ {[%clk 0:00:35.8]} 29. Kh1 {[%clk 0:00:19.1]} 29... Rxe3 {[%clk
0:00:35.7]} 30. Rd2 {[%clk 0:00:17.2]} 30... Qf3+ {[%clk 0:00:33]} 31. Kg1
{[%clk 0:00:16.5]} 31... Bc5 {[%clk 0:00:25.9]} 32. Qxc5 {[%clk 0:00:10]} 32...
bxc5 {[%clk 0:00:25.3]} 33. Rf1 {[%clk 0:00:06.8]} 33... Qg4+ {[%clk 0:00:24]}
34. Rg2 {[%clk 0:00:07.1]} 34... Rg3 {[%clk 0:00:24.5]} 35. Rxg3 {[%clk
0:00:07.2]} 35... Qxg3+ {[%clk 0:00:24.9]} 0-1

[Event "Early-Titled-Tuesday-Blitz-October-03-2023"]
[Site "Chess.com"]
[Date "2023.10.03"]
[Round "1"]
[White "vugarrasulov"]
[Black "a-z30"]
[Result "1-0"]
[WhiteElo "2949"]
[BlackElo "2504"]
[TimeControl "180+1"]
[EndTime "8:07:09 PDT"]
[Termination "vugarrasulov won on time"]

1. e4 {[%clk 0:03:00.9]} 1... d6 {[%clk 0:02:59.7]} 2. d4 {[%clk 0:03:00.8]}
2... Nf6 {[%clk 0:03:00.4]} 3. f3 {[%clk 0:03:00.6]} 3... g6 {[%clk 0:03:01.1]}
4. c4 {[%clk 0:03:00.3]} 4... Bg7 {[%clk 0:02:59.8]} 5. Nc3 {[%clk 0:03:00.9]}
5... O-O {[%clk 0:02:59.3]} 6. Be3 {[%clk 0:03:00.6]} 6... c5 {[%clk 0:02:59.3]}
7. Nge2 {[%clk 0:02:59.8]} 7... Nc6 {[%clk 0:02:58.4]} 8. Qd2 {[%clk 0:02:58.2]}
8... e6 {[%clk 0:02:30.7]} 9. d5 {[%clk 0:02:51.5]} 9... Ne5 {[%clk 0:02:26.6]}
10. Ng3 {[%clk 0:02:51.6]} 10... Re8 {[%clk 0:02:18.6]} 11. Be2 {[%clk
0:02:50.7]} 11... a6 {[%clk 0:02:09.2]} 12. a4 {[%clk 0:02:50]} 12... exd5
{[%clk 0:02:08.7]} 13. cxd5 {[%clk 0:02:50.9]} 13... h5 {[%clk 0:02:08.8]} 14.
O-O {[%clk 0:02:50.1]} 14... h4 {[%clk 0:02:08.3]} 15. Nh1 {[%clk 0:02:50.2]}
15... Nh7 {[%clk 0:02:08.5]} 16. Nf2 {[%clk 0:02:48.2]} 16... f5 {[%clk
0:02:01.8]} 17. Rae1 {[%clk 0:02:42.3]} 17... Bd7 {[%clk 0:01:55.7]} 18. Nd3
{[%clk 0:02:11.1]} 18... Nc4 {[%clk 0:01:54]} 19. Qc1 {[%clk 0:01:36.3]} 19...
Nxe3 {[%clk 0:01:53]} 20. Rf2 {[%clk 0:01:37]} 20... Nc4 {[%clk 0:01:50.1]} 21.
Nf4 {[%clk 0:01:31.5]} 21... Ne5 {[%clk 0:01:38.4]} 22. Qc2 {[%clk 0:01:28.7]}
22... Bh6 {[%clk 0:01:15.5]} 23. g3 {[%clk 0:01:21.5]} 23... fxe4 {[%clk
0:01:05.9]} 24. Nxe4 {[%clk 0:01:15.6]} 24... Bf5 {[%clk 0:01:05.1]} 25. Kh1
{[%clk 0:01:09.8]} 25... Ng5 {[%clk 0:00:55.6]} 26. gxh4 {[%clk 0:00:53.8]}
26... Nxe4 {[%clk 0:00:50.1]} 27. fxe4 {[%clk 0:00:54.7]} 27... Ng4 {[%clk
0:00:28.2]} 28. Bxg4 {[%clk 0:00:50.7]} 28... Bxg4 {[%clk 0:00:27.3]} 29. Rg1
{[%clk 0:00:42.7]} 29... Bxf4 {[%clk 0:00:20.6]} 30. Rxg4 {[%clk 0:00:40.6]}
30... Be5 {[%clk 0:00:13.7]} 31. Rxg6+ {[%clk 0:00:39.5]} 31... Kh7 {[%clk
0:00:10.4]} 32. Rg5 {[%clk 0:00:39.9]} 32... Rf8 {[%clk 0:00:09]} 33. Qe2 {[%clk
0:00:38.1]} 33... Rf6 {[%clk 0:00:06.4]} 34. Rff5 {[%clk 0:00:23.6]} 34... Rh6
{[%clk 0:00:03.4]} 35. Qg4 {[%clk 0:00:22.3]} 35... Qe7 {[%clk 0:00:02.3]} 36.
h5 {[%clk 0:00:21.1]} 36... Rf8 {[%clk 0:00:01.3]} 37. Rg6 {[%clk 0:00:21.6]}
1-0

[Event "Early-Titled-Tuesday-Blitz-October-03-2023"]
[Site "Chess.com"]
[Date "2023.10.03"]
[Round "1"]
[White "Macron20hTF1"]
[Black "LuisFSiles"]
[Result "1-0"]
[WhiteElo "2616"]
[BlackElo "2286"]
[TimeControl "180+1"]
[EndTime "8:07:09 PDT"]
[Termination "Macron20hTF1 won by resignation"]

1. e4 {[%clk 0:02:57]} 1... c5 {[%clk 0:02:59.5]} 2. Nf3 {[%clk 0:02:56]} 2...
Nc6 {[%clk 0:02:59.6]} 3. Bc4 {[%clk 0:02:55.3]} 3... e6 {[%clk 0:02:58.6]} 4.
O-O {[%clk 0:02:55.5]} 4... a6 {[%clk 0:02:58.5]} 5. Re1 {[%clk 0:02:55.1]} 5...
Qc7 {[%clk 0:02:57.6]} 6. c3 {[%clk 0:02:53.6]} 6... b5 {[%clk 0:02:54.9]} 7.
Bf1 {[%clk 0:02:53.5]} 7... Nf6 {[%clk 0:02:47.2]} 8. e5 {[%clk 0:02:51.5]} 8...
Nd5 {[%clk 0:02:46.6]} 9. d4 {[%clk 0:02:51.3]} 9... cxd4 {[%clk 0:02:42.7]} 10.
cxd4 {[%clk 0:02:52.2]} 10... d6 {[%clk 0:02:42.9]} 11. Nc3 {[%clk 0:02:50.6]}
11... Nxc3 {[%clk 0:02:40]} 12. bxc3 {[%clk 0:02:51.5]} 12... dxe5 {[%clk
0:02:39.6]} 13. dxe5 {[%clk 0:02:51]} 13... Be7 {[%clk 0:02:29.3]} 14. a4 {[%clk
0:02:48.8]} 14... b4 {[%clk 0:02:17.9]} 15. cxb4 {[%clk 0:02:46.6]} 15... Nxb4
{[%clk 0:02:13.6]} 16. Ba3 {[%clk 0:02:30.6]} 16... a5 {[%clk 0:02:12.1]} 17.
Rc1 {[%clk 0:02:26.9]} 17... Qa7 {[%clk 0:02:11]} 18. Bb5+ {[%clk 0:01:44]}
18... Bd7 {[%clk 0:02:09.9]} 19. Bxd7+ {[%clk 0:01:44.6]} 19... Qxd7 {[%clk
0:02:10.4]} 20. Qxd7+ {[%clk 0:01:45.2]} 20... Kxd7 {[%clk 0:02:10.7]} 21. Red1+
{[%clk 0:01:46.1]} 21... Nd5 {[%clk 0:02:07.4]} 22. Bxe7 {[%clk 0:01:41.7]}
22... Kxe7 {[%clk 0:02:07]} 23. Nd4 {[%clk 0:01:42.6]} 23... Rhc8 {[%clk
0:01:53.4]} 24. Kf1 {[%clk 0:01:40.9]} 24... Kd7 {[%clk 0:01:35.5]} 25. Nb5
{[%clk 0:01:31.1]} 25... Rxc1 {[%clk 0:01:26.1]} 26. Rxc1 {[%clk 0:01:32]} 26...
Rc8 {[%clk 0:01:24.4]} 27. Rxc8 {[%clk 0:01:17.4]} 27... Kxc8 {[%clk 0:01:24.6]}
28. Ke2 {[%clk 0:00:48.2]} 28... Nb6 {[%clk 0:01:18.1]} 29. Nc3 {[%clk
0:00:38.8]} 29... Kd7 {[%clk 0:01:10.4]} 30. Kd3 {[%clk 0:00:39.3]} 30... Kc6
{[%clk 0:01:08.4]} 31. Kd4 {[%clk 0:00:39.9]} 31... f6 {[%clk 0:01:00.1]} 32. f4
{[%clk 0:00:36.7]} 32... f5 {[%clk 0:00:58.5]} 33. h3 {[%clk 0:00:34.2]} 33...
g6 {[%clk 0:00:46.1]} 34. g4 {[%clk 0:00:34.1]} 34... h6 {[%clk 0:00:41.6]} 35.
g5 {[%clk 0:00:16.2]} 35... h5 {[%clk 0:00:30.7]} 36. h4 {[%clk 0:00:16.3]}
36... Nd5 {[%clk 0:00:30.4]} 37. Nxd5 {[%clk 0:00:14.8]} 37... exd5 {[%clk
0:00:30.6]} 38. e6 {[%clk 0:00:15.7]} 38... Kd6 {[%clk 0:00:30.6]} 39. e7 {[%clk
0:00:16.1]} 39... Kxe7 {[%clk 0:00:29.3]} 40. Kxd5 {[%clk 0:00:16.7]} 40... Kd7
{[%clk 0:00:29]} 41. Kc5 {[%clk 0:00:16.9]} 41... Kc7 {[%clk 0:00:28.8]} 42. Kb5
{[%clk 0:00:17.4]} 42... Kd6 {[%clk 0:00:29.3]} 43. Kxa5 {[%clk 0:00:17.7]}
43... Kd5 {[%clk 0:00:29.2]} 44. Kb6 {[%clk 0:00:18]} 44... Ke4 {[%clk
0:00:29.9]} 45. a5 {[%clk 0:00:18.7]} 45... Kxf4 {[%clk 0:00:30.8]} 46. a6
{[%clk 0:00:19.6]} 46... Kg3 {[%clk 0:00:30.9]} 47. a7 {[%clk 0:00:20.5]} 47...
f4 {[%clk 0:00:31.5]} 48. a8=Q {[%clk 0:00:21]} 48... f3 {[%clk 0:00:32.1]} 49.
Kc5 {[%clk 0:00:18.2]} 49... f2 {[%clk 0:00:32]} 50. Qh1 {[%clk 0:00:18.2]} 1-0